Cogmind - Beta 16 @@@ ROGUE MODE // 2025.12.24 @ 18:34:53 Player: k1ll3rb0t Result: Destroyed by Y-54 Guardian with Gatling Laser Performance ------------- Evolutions (0) 0 Regions Visited (3) 600 Robots Destroyed (25) 125 Value Destroyed (609) 609 Prototype IDs (0) 0 Alien Tech Used (0) 0 Bonus (0) 0 TOTAL SCORE: 1334 Bonus ------- None Cogmind --------- Core Integrity 0/250 Matter 97/300 Energy 246/250 System Corruption 0% Temperature Cool (30) Movement Rolling (119) Ox2 Location -7/Recycling Parts ------- > --- POWER (1) -------- Ion Engine > --- PROPULSION (2) --- Wheel Subdweller Monowheel > --- UTILITY (2) ------ Heat Sink Huge Storage Unit > --- WEAPON (2) ------- Beam Cannon Light Assault Rifle > --- INVENTORY (25) --- Light Treads Light Treads Light Treads Wheel Improved Heat Sink High-capacity Storage Unit High-capacity Battery (250) High-capacity Matter Pod (93) Machine Analyzer Improved Terrain Scanner Beam Cannon Assault Cannon Grenade Launcher Grenade Launcher Grenade Launcher Grenade Launcher Maul Peak State ------------ > --- POWER ------------ Light Nuclear Core > --- PROPULSION ------- Compact Wheel Subdweller Monowheel > --- UTILITY ---------- Heat Sink High-capacity Storage Unit > --- WEAPON ----------- Light Assault Rifle Grenade Launcher > --- INVENTORY -------- Ion Engine Light Treads Light Treads Light Treads Wheel Wheel Improved Heat Sink High-capacity Battery High-capacity Matter Pod Machine Analyzer Improved Terrain Scanner Beam Cannon Beam Cannon Grenade Launcher Grenade Launcher Grenade Launcher Grenade Launcher Grenade Launcher Mining Laser [Rating: 12] Favorites ----------- Power Ion Engine Engine Ion Engine Power Core Light Nuclear Core Propulsion Aluminum Leg Leg Aluminum Leg Wheel Compact Wheel Utility Heat Sink Device Heat Sink Storage High-capacity Storage Unit Weapon Light Assault Rifle Energy Gun EM Pulse Gun Energy Cannon Beam Cannon Ballistic Gun Light Assault Rifle Ballistic Cannon Assault Cannon Launcher Grenade Launcher Special Weapon Mining Laser Build | -11 -10 -10 -7 ------- Run | Yrd Mat Sub Rec Slots Evolved . | . . . . Power . | . . . . Propulsion . | . . . . Utility . | . . . . Weapon . | . . . . Parts Attached 25 | 7 11 5 2 Power 4 | 1 2 1 . Engine 3 | 1 1 1 . Core 1 | . 1 . . Reactor . | . . . . Propulsion 7 | 2 3 2 . Treads . | . . . . Leg 2 | 2 . . . Wheel 5 | . 3 2 . Hover . | . . . . Flight . | . . . . Utility 5 | 2 2 . 1 Device 2 | 1 1 . . Storage 3 | 1 1 . 1 Processor . | . . . . Hackware . | . . . . Protection . | . . . . Artifact . | . . . . Weapon 9 | 2 4 2 1 Energy Gun 1 | 1 . . . Energy Cannon 2 | . 1 1 . Ballistic Gun 2 | 1 1 . . Ballistic Cannon 1 | . . . 1 Launcher 2 | . 1 1 . Special Weapon 1 | . 1 . . Impact Weapon . | . . . . Slashing Weapon . | . . . . Piercing Weapon . | . . . . Special Melee Weapon . | . . . . Unidentified Prototypes . | . . . . Parts Lost 7 | . 3 4 . Power 1 | . . 1 . Propulsion 3 | . 1 2 . Utility 1 | . 1 . . Weapon 2 | . 1 1 . Highest Loss Streak 4 | . 2 4 . To Critical Strikes . | . . . . Average Backups 13 | 5 12 19 16 Power . | . . . . Propulsion 4 | 3 4 5 4 Utility 2 | . 1 4 5 Weapon 5 | 1 4 7 7 Tool/Special . | . . . . Unused Backups 16 | . 1 1 14 Power . | . . . . Propulsion 5 | . . 1 4 Utility 5 | . . . 5 Weapon 6 | . 1 . 5 Tool/Special . | . . . . Average Slot Usage (%) 97 | . 97 97 100 Engine 11 | . 13 2 14 Core 2 | . . 11 . Leg 10 | . 14 . . Wheel 15 | . 11 26 28 Device 13 | . 13 14 14 Storage 14 | . 14 14 14 Energy Gun 5 | . 6 . . Energy Cannon 1 | . . 11 . Ballistic Gun 16 | . 17 12 14 Launcher 2 | . 1 4 9 Special Weapon 1 | . 1 . . Peak Build Rating 12 | 8 11 12 12 Average Rating 8 | 4 8 10 10 On Entrance 7 | . 8 11 10 Avg Prop Armor Cover (%) . | . . . . Naked Turns . | . . . . Heaviest Build 92 | 14 50 52 92 Greatest Support 36 | 20 32 36 30 Greatest Overweight (x) 4 | 1 4 3 3 Average Overweight (x) . | . . 1 1 Largest Inventory Capacity 25 | 8 20 20 25 Average Capacity 15 | 6 13 20 22 Most Carried 20 | 8 20 20 17 Average Carried 13 | 5 12 19 16 Final Capacity 25 | 8 20 20 25 Final Carried 20 | 8 20 16 17 Class Distribution -------------------- 100% | Mutant Dominant Class ---------------- Mutant | -10/Materials Mutant | -10/Subcaves Mutant | -7/Recycling Resources | -11 -10 -10 -7 ----------- Run | Yrd Mat Sub Rec Matter Collected 745 | 241 424 80 . Remotely . | . . . . Salvage Created 798 | 22 725 51 . Parts 55 | 5 40 10 . Haulers Intercepted 2 | . 2 . . Recyclers Shooed 3 | 1 2 . . Parts Field Recycled . | . . . . Retrieved Matter . | . . . . Parts Self-Destructed 3 | . . 3 . Prevented . | . . . . Parts Restored . | . . . . Kills | -11 -10 -10 -7 ------- Run | Yrd Mat Sub Rec Combat Hostiles Destroyed 16 | . 11 5 . Guns 6 | . 6 . . Cannons 1 | . . 1 . AOE 9 | . 5 4 . Classes Destroyed 10 | 1 6 3 . Worker 1 | . 1 . . Tunneler 1 | 1 . . . Hauler 2 | . 2 . . Recycler 2 | . 2 . . Operator 1 | . 1 . . Turret 1 | . . 1 . Watcher 1 | . 1 . . Swarmer 4 | . . 4 . Grunt 11 | . 11 . . Subdweller 1 | . . 1 . Best Kill Streak 4 | 1 4 4 . Combat Bots Only 4 | . 4 4 . Max Kills in Single Turn 2 | 1 1 2 . Gunslinging . | . . . . Exploded 2 | . 1 2 . Melee . | . . . . Uniques/NPCs Destroyed . | . . . . Combat | -11 -10 -10 -7 -------- Run | Yrd Mat Sub Rec Hostile Shots Fired 173 | . 59 102 12 Missed 65 | . 20 41 4 Hits 108 | . 39 61 8 Projectile 108 | . 39 61 8 Critical Strikes 1 | . 1 . . Damage Taken 1139 | . 468 600 71 Core 258 | . 59 173 26 Absorbed by Shields . | . . . . Core Remaining (%) 100 | 100 . . . Volleys Fired 101 | 5 75 19 2 Largest 2 | 1 2 2 2 Hottest 100 | 40 100 90 80 Shots Fired 169 | 5 135 25 4 Gun 129 | 5 116 6 2 Cannon 11 | . 3 6 2 Launcher 24 | . 11 13 . Special 5 | . 5 . . Kinetic 90 | 4 78 6 2 Thermal 16 | . 8 6 2 Explosive 24 | . 11 13 . Electromagnetic 39 | 1 38 . . Robot Hit Streak 11 | 4 11 5 5 Robot Miss Streak 3 | 1 3 2 . Penetration Max . | . . . . Secondary Targets 1 | . 1 . . Max Gunslinging Chain 1 | . 1 . . Shots Hit Robots 97 | 4 81 8 4 Core Hits 53 | 3 36 13 1 Critical Kills . | . . . . Critical Parts Destroyed . | . . . . Critical Strikes 1 | . 1 . . Corrupt 1 | . 1 . . Melee Attacks . | . . . . Impact . | . . . . Slashing . | . . . . Piercing . | . . . . Sneak Attacks . | . . . . Combat Hostiles . | . . . . Follow-up Attacks . | . . . . Damage Inflicted 1990 | 33 1312 589 56 Guns 865 | 33 785 27 20 Cannons 158 | . 35 87 36 Explosions 967 | . 492 475 . Melee . | . . . . Ramming . | . . . . Kinetic 453 | 21 385 27 20 Thermal 158 | . 35 87 36 Explosive 967 | . 492 475 . Electromagnetic 412 | 12 400 . . Impact . | . . . . Slashing . | . . . . Piercing . | . . . . Highest Corruption . | . . . . Average Corruption . | . . . . Corruption Purged . | . . . . Corruption Blocked . | . . . . Overload Shots . | . . . . Overflow Damage 23 | . . 23 . Projectiles . | . . . . Explosions 23 | . . 23 . Melee . | . . . . Knockbacks . | . . . . Impact . | . . . . Kinetic . | . . . . Secondary . | . . . . Self-Inflicted Damage 13 | . . 13 . Shots 1 | . . 1 . Rammed . | . . . . Targets Rammed . | . . . . Kicked . | . . . . Crushed . | . . . . Highest Temperature 135 | . 135 1 38 Average Temperature 36 | . 38 1 18 Received Heat Transfer 639 | . 282 327 30 Siege Activations . | . . . . Martial Activations . | . . . . Shielding Activations . | . . . . Robots Disrupted . | . . . . Combat Hostiles . | . . . . Robots Corrupted . | . . . . Combat Hostiles . | . . . . Parts Fried 2 | . 2 . . Impact Corruptions . | . . . . Robots Melted . | . . . . Combat Hostiles . | . . . . Parts Melted . | . . . . Heat Transferred 333 | . 74 185 74 Parts Sabotaged . | . . . . Parts Stolen . | . . . . Parts Stripped . | . . . . Power Chain Reactions . | . . . . Alert | -11 -10 -10 -7 ------- Run | Yrd Mat Sub Rec Maximum Alert Level 1 | . 1 . . Low Security (%) 97 | 100 97 . 100 Level 1 2 | . 2 . . Level 2 . | . . . . Level 3 . | . . . . Level 4 . | . . . . Level 5 . | . . . . High Security . | . . . . Max Security . | . . . . Peak Influence 209 | 5 209 . 45 Initial 45 | . . . 45 Average 46 | . 53 . 18 Influence Increases 609 | 5 437 160 7 Destroy 0b10 Robot/C 320 | . 220 100 . Destroy 0b10 Robot/NC 40 | 5 35 . . Destroy Leader 46 | . 46 . . Successful Hack 15 | . 8 . 7 Disable Machine 45 | . 45 . . Destroy Structure 38 | . 38 . . Lose Combat Pursuer 105 | . 45 60 . Influence Decreases 609 | 5 293 210 101 Entered New Map 119 | . . 70 49 Time Decay 440 | 5 283 100 52 Lost Part 50 | . 10 40 . Squads Dispatched 2 | . 2 . . Investigation 2 | . 2 . . Extermination . | . . . . Reinforcement . | . . . . Assault . | . . . . Garrison . | . . . . Intercept . | . . . . Searches Triggered . | . . . . Construction Impeded . | . . . . Haulers Reinforced . | . . . . Active Scanning Responses . | . . . . Cargo Convoy Interrupts . | . . . . Stealth | -11 -10 -10 -7 --------- Run | Yrd Mat Sub Rec Distress Signals . | . . . . Communications Jammed . | . . . . Distress Signals . | . . . . Times Spotted 31 | . 22 8 1 Peak Tracking Total 7 | . 4 7 1 Tactical Retreats 3 | . 1 2 . Traps | -11 -10 -10 -7 ------- Run | Yrd Mat Sub Rec Traps Triggered 1 | . 1 . . Indirectly . | . . . . Trap Hack Attempts . | . . . . Triggered . | . . . . Disarmed . | . . . . Reprogrammed . | . . . . Reused . | . . . . Traps Extracted . | . . . . Installed . | . . . . Triggered . | . . . . Machines | -11 -10 -10 -7 ---------- Run | Yrd Mat Sub Rec Machines Disabled 7 | . 3 4 . Max in Single Turn 1 | . 1 1 . Machines Repaired . | . . . . Machines Dismantled . | . . . . Machines Sabotaged . | . . . . Overloaded Fab Kills . | . . . . Hacking | -11 -10 -10 -7 --------- Run | Yrd Mat Sub Rec Machines Accessed 9 | . 5 . 4 Terminals 9 | . 5 . 4 Fabricators . | . . . . Repair Stations . | . . . . Recycling Units . | . . . . Scanalyzers . | . . . . Garrison Access . | . . . . Total Hacks 32 | . 18 . 14 Successful 8 | . 5 . 3 Failed 24 | . 13 . 11 Catastrophic 9 | . 4 . 5 Database Lockouts . | . . . . Manual 22 | . 15 . 7 Terminals 32 | . 18 . 14 Fabricators . | . . . . Repair Stations . | . . . . Recycling Units . | . . . . Scanalyzers . | . . . . Garrison Access . | . . . . Terminal Hacks 6 | . 5 . 1 Record 1 | . 1 . . Part Schematic 2 | . 1 . 1 Alert Level 1 | . 1 . . Hauler Manifests 1 | . 1 . . Registered Components 1 | . 1 . . Fabricator Hacks . | . . . . Repair Station Hacks . | . . . . Recycling Unit Hacks . | . . . . Scanalyzer . | . . . . Garrison Access Hacks . | . . . . Unauthorized Hacks 2 | . . . 2 Terminals 2 | . . . 2 Botnet 2 | . . . 2 Fabricators . | . . . . Repair Stations . | . . . . Recycling Units . | . . . . Scanalyzers . | . . . . Garrison Access . | . . . . Data Cores Recovered 1 | . 1 . . Used . | . . . . Hacking Detections 9 | . 5 . 4 Full Trace Events 5 | . 1 . 4 Feedback Events . | . . . . Feedback Blocked . | . . . . Robot Schematics Acquired . | . . . . Robots Built . | . . . . Authchips . | . . . . Time . | . . . . Total Robot Build Rating . | . . . . Part Schematics Acquired 2 | . 1 . 1 Parts Built . | . . . . Authchips . | . . . . Time . | . . . . Total Part Build Rating . | . . . . Part Studies Acquired . | . . . . Parts Repaired . | . . . . Time . | . . . . Parts Recycled . | . . . . Recycled Matter . | . . . . Retrieved Matter . | . . . . Retrieved Components . | . . . . Parts Scanalyzed . | . . . . Part Schematics Acquired . | . . . . Parts Damaged . | . . . . Bothacking | -11 -10 -10 -7 ------------ Run | Yrd Mat Sub Rec Used RIF Installer . | . . . . Robots Hacked . | . . . . Non-combat . | . . . . Combat . | . . . . Robot Hacks Applied . | . . . . Relay Couplers Released . | . . . . Fabnet Peak Effective % . | . . . . Robots Rewired . | . . . . Allies Hacked . | . . . . Hacks Repelled . | . . . . Allies | -11 -10 -10 -7 -------- Run | Yrd Mat Sub Rec Total Allies . | . . . . Largest Group . | . . . . Highest-Rated Group . | . . . . Highest-Rated Ally . | . . . . Total Orders . | . . . . Ally Attacks . | . . . . Total Damage . | . . . . Kills . | . . . . Allies Corrupted . | . . . . Allies Melted . | . . . . Intel | -11 -10 -10 -7 ------- Run | Yrd Mat Sub Rec Active Infowar (turns) 520 | 27 493 . . Seismic 520 | 27 493 . . Robot Analysis Total . | . . . . Derelict Logs Recovered 1 | . . 1 . Drone Launches . | . . . . Drone Recoveries . | . . . . Exploration | -11 -10 -10 -7 ------------- Run | Yrd Mat Sub Rec Turns Passed 1597 | 92 1142 203 160 Spaces Moved 1057 | 59 734 139 125 Core 13 | 13 . . . Treads . | . . . . Legs 426 | 46 380 . . Wheels 618 | . 354 139 125 Hover . | . . . . Flight . | . . . . Fastest Speed 50 | 50 105 105 107 Average Speed 116 | 107 118 107 116 Slowest Speed 145 | 120 145 145 131 Overloaded Moves . | . . . . Propulsion Burnouts . | . . . . Robots Hopped . | . . . . Potential Cave-ins . | . . . . Cave-ins Triggered . | . . . . Exploration Rate (%) 29 | 4 79 9 27 Regions Visited 3 Branch Regions 2 Pre-discovered Areas 1 | . . 1 . Known Exits Taken . | . . . . Unknown Exits Taken 3 | 1 1 1 . Scrap Searched . | . . . . Spaces Dug 5 | . 5 . . Terrain Destroyed 74 | . 39 35 . Melee . | . . . . Projectile 5 | . 5 . . AOE 69 | . 34 35 . Terrain Rammed . | . . . . Walls Destroyed . | . . . . Machines Disabled . | . . . . Actions | -11 -10 -10 -7 --------- Run | Yrd Mat Sub Rec Total 1254 | 80 870 168 136 Wait 23 | . 20 . 3 Move 1054 | 58 733 138 125 Hop . | . . . . Pick Up 30 | 10 17 2 1 Fast Attach 11 | 5 5 . 1 Attach 7 | 2 1 4 . Detach . | . . . . Swap 18 | . 13 3 2 Drop 10 | . 6 2 2 Fire 101 | 5 75 19 2 Melee . | . . . . Ram . | . . . . Kick . | . . . . Crush . | . . . . Escape Stasis . | . . . . Rewire . | . . . . Trap . | . . . . Miscellaneous . | . . . . Route ------- -11/Scrapyard -10/Materials (discovered 5 exits: [*Mat x3] / [*Min] / [*Sub]) -10/Subcaves -7/Recycling History --------- Turn | Location | Event 2 | -11/Scrapyard | Met Revision 17 13 | -11/Scrapyard | Discovered new exit (range 15) 93 | -11/Scrapyard | Entered Materials 252 | -10/Materials | Discovered new exit (range 9) 312 | -10/Materials | Build established: Mutant 629 | -10/Materials | Discovered new exit (range 10) 788 | -10/Materials | Discovered new exit (range 7) 1104 | -10/Materials | Discovered new exit (range 12) 1229 | -10/Materials | Discovered new exit (range 5) 1235 | -10/Materials | Entered Subcaves 1236 | -10/Subcaves | Approached by a straggling Scientist 1282 | -10/Subcaves | Learned location of Zion (-7) 1386 | -10/Subcaves | Core integrity fell below 50% 1401 | -10/Subcaves | Discovered new exit (range 15) 1412 | -10/Subcaves | Core integrity fell below 20% 1438 | -10/Subcaves | Entered Recycling 1448 | -7/Recycling | Lost 4 parts (1p2n1w) 1598 | -7/Recycling | Destroyed by Y-54 Guardian with Gatling Laser Last Messages --------------- Awaiting botnet instructions. 01476_ Connecting with Terminal... >>Trojan(Botnet) Trojan loaded successfully. Testing... Terminal linked with 1 system. Awaiting botnet instructions. 01476_ Connecting with Terminal... >>Schematic(Lyr. Heavy Armor Plating) Downloading schematic... Lyr. Heavy Armor Plating Rating: 6 Schematic downloaded. 01532_ Dropped Mining Laser. 01532_ Acquired Maul. 01533_ Dropped Grenade Launcher. 01536_ Acquired Assault Cannon. 01544_ R-06 Scavenger collects Mining Laser. 01548_ R-06 Scavenger collects Grenade Launcher. 01595_ Y-54 Guardian springs to life. Map ----- +----------------------------------------------------+ | ?????????????????????????????????? | | ?????????????????????????????????? | | ?????????????????????????????????? | | ?????????????????????????????????? | | ?????????????????????????????????? | | ?????????????????????????????????? | | ?????????????????????????????????? | | ?????????????????????????????????? | | ?????????????????????????????????? | | ?????????????????????????????????? | | ?????????????????????????????????? | | ?????????????????????????????????? | | ?????????????????????????????????? | | ?????????????????????????????????? | | ?????????+???????????????????????? | | ????????? ???????????????????????? | | ????????? ???????????????????????? | | ????????# #??????????????????????? | | ????????# #??????????????????????? | | ????????# #??????????????????????? | | ????????# #??????????????????????? | | ????????# #??????????????????????? | | ????????# #??????????????????????? | | ????????#r##?????????????????????? | | ????????# Y#?????????????????????? | | ????????#@#??????????????????????? | | ????????# ####????????????????#### | | ????????# ########?????????#""" | | ????????# # #?????#####"T" | | ??#######+## # #?????# | | ??# + #! #?????# | | ??# # #!! #???### " | | ??# # # ] * #???#"" " | | ??# # # ! #???#"" " | | ?## # # ! ! #???#"T | | ?# # #] #???#"" "" " | | ?## + # #???#"" "" " | | ??# # # ! #???### "T " | | ??# # # #?????# "" | | ??# # # ! #?????# "" | | ??# # # #?????# | | ??# # ###/################+ | | ??# # | | ??# + | | ??# # | | ??# # | | ??# + | | ??# ############## !###### | | ??## #######????????????#! !#????? | | ???#????????????????????#####????? | +----------------------------------------------------+ Best States ------------- Heat Dissipation 35 Energy Generation 14 Energy Capacity 250 Matter Stores 300 Matter Capacity 300 Sight Range 16 Terrain Scan Density 10 Evasion (%) 55 Item Schematics ----------------- Huge Storage Unit | -10/Materials | Hacked Lyr. Heavy Armor Plating | -7/Recycling | Hacked Robot Schematics ------------------ None Fabricated ------------ Nothing Repaired ---------- Nothing Studied --------- None Alien Tech Used ----------------- None Achievements -------------- None Challenges ------------ None Game ------ Seed ArmageddonAntigravTelecube Manual? 0 Play Time 00:29:58 Cumulative 232.8 hours Start 2025.11.24 @ 16:40:58 End 2025.12.24 @ 18:34:53 Sessions 4 Manual Loads 0 Difficulty Rogue Special Mode None Game No. 69 Rogue 69 Adventurer 0 Explorer 0 Win Type - Total 3 Types 2/0/0/1/0/0/0/0/0/0 Lore% 65 Gallery% 65 Achievement% 50 Wizard Run 0 Options --------- Layout 1 ASCII 0 Keyboard 0 Movement Mouse Keybinds 0 Fullscreen 1 Font 32/Smallcaps Map View 50x35 Zoom Use 0% Tactical HUD 1 Map Filters NONE Filters NONE Steam 1 RUN: 3e33c7a1-9d98-47b9-8fa4-2f94f4b18785